[Event "Titled Tuesday Blitz July 27 2021"]
[White "Krivonosov, Oleg"]
[Black "Tologon tegin, Semetei"]
[WhiteFideId "11600349"]
[BlackFideId "13800574"]
[WhiteElo "2469"]
[BlackElo "2224"]
[Result "1-0"]
[Round "10"]
[TimeControl "180+1"]
[Date "2021.07.27"]
[WhiteClock "0:00:55"]
[BlackClock "0:00:02"]

1. Nf3 {[%clk 0:03:00]}  c5 {[%clk 0:02:54]} 2. c4 {[%clk 0:03:00]}  g6 {[%clk 0:02:47]} 3. d4 {[%clk 0:02:59]}  cxd4 {[%clk 0:02:46]} 4. Nxd4 {[%clk 0:03:00]}  Bg7 {[%clk 0:02:41]} 5. e4 {[%clk 0:02:59]}  Nc6 {[%clk 0:02:40]} 6. Be3 {[%clk 0:02:58]}  Qb6 {[%clk 0:02:33]} 7. Nb5 {[%clk 0:02:54]}  Qa5+ {[%clk 0:02:30]} 8. N1c3 {[%clk 0:02:54]}  a6 {[%clk 0:02:27]} 9. Nd4 {[%clk 0:02:51]}  Nxd4 {[%clk 0:02:19]} 10. Bxd4 {[%clk 0:02:50]}  Nf6 {[%clk 0:02:20]} 11. f3 {[%clk 0:02:40]}  O-O {[%clk 0:01:54]} 12. Be2 {[%clk 0:02:39]}  d6 {[%clk 0:01:48]} 13. Qd2 {[%clk 0:02:35]}  Bd7 {[%clk 0:01:47]} 14. Rc1 {[%clk 0:02:25]}  b5 {[%clk 0:01:46]} 15. b3 {[%clk 0:02:23]}  bxc4 {[%clk 0:01:40]} 16. Bxc4 {[%clk 0:02:22]}  Rfc8 {[%clk 0:01:34]} 17. O-O {[%clk 0:02:17]}  Bb5 {[%clk 0:01:30]} 18. Bxb5 {[%clk 0:02:13]}  axb5 {[%clk 0:01:31]} 19. Rfd1 {[%clk 0:02:12]}  b4 {[%clk 0:00:55]} 20. Na4 {[%clk 0:02:08]}  Nd7 {[%clk 0:00:55]} 21. Bxg7 {[%clk 0:02:05]}  Kxg7 {[%clk 0:00:56]} 22. Qd4+ {[%clk 0:02:05]}  f6 {[%clk 0:00:55]} 23. h3 {[%clk 0:02:03]}  Nc5 {[%clk 0:00:38]} 24. Nxc5 {[%clk 0:01:59]}  Rxc5 {[%clk 0:00:38]} 25. Rxc5 {[%clk 0:01:54]}  Qxc5 {[%clk 0:00:33]} 26. Qxc5 {[%clk 0:01:48]}  dxc5 {[%clk 0:00:34]} 27. Rd2 {[%clk 0:01:40]}  Kf7 {[%clk 0:00:29]} 28. Kf2 {[%clk 0:01:39]}  Ke6 {[%clk 0:00:29]} 29. Ke3 {[%clk 0:01:39]}  Ra6 {[%clk 0:00:29]} 30. f4 {[%clk 0:01:34]}  Rd6 {[%clk 0:00:14]} 31. Rc2 {[%clk 0:01:33]}  Ra6 {[%clk 0:00:12]} 32. g4 {[%clk 0:01:30]}  Kd6 {[%clk 0:00:12]} 33. h4 {[%clk 0:01:27]}  Kc6 {[%clk 0:00:11]} 34. g5 {[%clk 0:01:26]}  Kb5 {[%clk 0:00:11]} 35. f5 {[%clk 0:01:22]}  Rd6 {[%clk 0:00:08]} 36. Rf2 {[%clk 0:01:12]}  gxf5 {[%clk 0:00:05]} 37. exf5 {[%clk 0:01:12]}  Rd4 {[%clk 0:00:05]} 38. Rf4 {[%clk 0:01:09]}  Rd1 {[%clk 0:00:03]} 39. Rg4 {[%clk 0:01:07]}  Rf1 {[%clk 0:00:02]} 40. g6 {[%clk 0:01:04]}  hxg6 {[%clk 0:00:02]} 41. fxg6 {[%clk 0:01:04]}  f5 {[%clk 0:00:02]} 42. g7 {[%clk 0:01:01]}  fxg4 {[%clk 0:00:02]} 43. g8=Q {[%clk 0:01:00]}  Rf3+ {[%clk 0:00:02]} 44. Ke4 {[%clk 0:00:59]}  Rc3 {[%clk 0:00:02]} 45. Qxg4 {[%clk 0:00:55]} 1-0


[Site "https://www.chess.com"]

[Event "Titled Tuesday Blitz July 27 2021"]
[White "Lauridsen, Jesper Morch"]
[Black "Haitin, Ilja"]
[WhiteFideId "1401890"]
[BlackFideId "4501764"]
[WhiteElo "2323"]
[BlackElo "2165"]
[Result "1-0"]
[Round "10"]
[TimeControl "180+1"]
[Date "2021.07.27"]
[WhiteClock "0:00:35"]
[BlackClock "0:00:02"]

1. e4 {[%clk 0:03:00]}  e6 {[%clk 0:02:51]} 2. d4 {[%clk 0:02:59]}  d5 {[%clk 0:02:52]} 3. Nc3 {[%clk 0:02:58]}  Bb4 {[%clk 0:02:49]} 4. exd5 {[%clk 0:02:57]}  exd5 {[%clk 0:02:39]} 5. Bd3 {[%clk 0:02:57]}  Ne7 {[%clk 0:02:30]} 6. Nf3 {[%clk 0:02:56]}  Nbc6 {[%clk 0:02:27]} 7. O-O {[%clk 0:02:48]}  Bxc3 {[%clk 0:02:21]} 8. bxc3 {[%clk 0:02:47]}  Bg4 {[%clk 0:02:20]} 9. h3 {[%clk 0:02:42]}  Bh5 {[%clk 0:02:20]} 10. Rb1 {[%clk 0:02:38]}  b6 {[%clk 0:02:19]} 11. Bb5 {[%clk 0:02:19]}  O-O {[%clk 0:02:17]} 12. Ba3 {[%clk 0:02:18]}  a6 {[%clk 0:01:32]} 13. Bxc6 {[%clk 0:02:17]}  Nxc6 {[%clk 0:01:32]} 14. Bxf8 {[%clk 0:02:17]}  Qxf8 {[%clk 0:01:33]} 15. Qd3 {[%clk 0:02:14]}  Bg6 {[%clk 0:01:31]} 16. Qd2 {[%clk 0:02:13]}  Na5 {[%clk 0:01:29]} 17. Ne5 {[%clk 0:02:02]}  Bf5 {[%clk 0:01:24]} 18. Rbe1 {[%clk 0:01:52]}  Qd6 {[%clk 0:01:23]} 19. Qf4 {[%clk 0:01:48]}  Be6 {[%clk 0:01:20]} 20. Nd3 {[%clk 0:01:44]}  Qa3 {[%clk 0:01:15]} 21. Qxc7 {[%clk 0:01:40]}  Nc4 {[%clk 0:01:09]} 22. Nf4 {[%clk 0:01:06]}  Qxc3 {[%clk 0:00:40]} 23. Rxe6 {[%clk 0:00:50]}  Qxd4 {[%clk 0:00:23]} 24. Re7 {[%clk 0:00:45]}  Rf8 {[%clk 0:00:21]} 25. Rfe1 {[%clk 0:00:43]}  Nd2 {[%clk 0:00:17]} 26. Rxf7 {[%clk 0:00:37]}  Ne4 {[%clk 0:00:01]} 27. Rxf8+ {[%clk 0:00:35]}  Kxf8 {[%clk 0:00:02]} 28. Ne6+ {[%clk 0:00:35]} 1-0


[Site "https://www.chess.com"]

[Event "Titled Tuesday Blitz July 27 2021"]
[White "Lazavik, Denis"]
[Black "Madaminov, Mukhiddin"]
[WhiteFideId "13515110"]
[BlackFideId "14210703"]
[WhiteElo "2436"]
[BlackElo "1747"]
[Result "1-0"]
[Round "10"]
[TimeControl "180+1"]
[Date "2021.07.27"]
[WhiteClock "0:00:11"]
[BlackClock "0:00:04"]

1. d4 {[%clk 0:03:00]}  Nf6 {[%clk 0:03:00]} 2. c4 {[%clk 0:03:01]}  e6 {[%clk 0:03:00]} 3. Nf3 {[%clk 0:03:02]}  Bb4+ {[%clk 0:03:00]} 4. Bd2 {[%clk 0:03:02]}  a5 {[%clk 0:03:01]} 5. a3 {[%clk 0:03:01]}  Bxd2+ {[%clk 0:03:01]} 6. Qxd2 {[%clk 0:03:02]}  d6 {[%clk 0:02:57]} 7. Nc3 {[%clk 0:03:00]}  Nc6 {[%clk 0:02:58]} 8. e4 {[%clk 0:02:58]}  e5 {[%clk 0:02:54]} 9. Be2 {[%clk 0:02:42]}  O-O {[%clk 0:02:54]} 10. Rd1 {[%clk 0:02:39]}  Re8 {[%clk 0:02:46]} 11. dxe5 {[%clk 0:02:31]}  Nxe5 {[%clk 0:02:47]} 12. Nxe5 {[%clk 0:02:28]}  Rxe5 {[%clk 0:02:48]} 13. f3 {[%clk 0:02:27]}  Re8 {[%clk 0:02:39]} 14. O-O {[%clk 0:02:28]}  Bd7 {[%clk 0:02:34]} 15. Rfe1 {[%clk 0:02:19]}  Bc6 {[%clk 0:02:34]} 16. Bf1 {[%clk 0:02:19]}  a4 {[%clk 0:02:33]} 17. Ne2 {[%clk 0:02:17]}  Nd7 {[%clk 0:02:30]} 18. Nd4 {[%clk 0:02:17]}  Nc5 {[%clk 0:02:31]} 19. Qf4 {[%clk 0:02:01]}  Qe7 {[%clk 0:02:13]} 20. Nf5 {[%clk 0:01:39]}  Qf6 {[%clk 0:02:12]} 21. Qd2 {[%clk 0:01:37]}  Ra6 {[%clk 0:02:05]} 22. Qd4 {[%clk 0:01:35]}  Qxd4+ {[%clk 0:02:03]} 23. Rxd4 {[%clk 0:01:36]}  Rb6 {[%clk 0:02:02]} 24. Rd2 {[%clk 0:01:36]}  Bd7 {[%clk 0:01:58]} 25. Ne3 {[%clk 0:01:33]}  Bc6 {[%clk 0:01:46]} 26. Kf2 {[%clk 0:01:16]}  g6 {[%clk 0:01:42]} 27. Rc2 {[%clk 0:01:14]}  Kg7 {[%clk 0:01:39]} 28. Rd1 {[%clk 0:01:12]}  Rb3 {[%clk 0:01:31]} 29. Re2 {[%clk 0:01:00]}  Re5 {[%clk 0:01:02]} 30. Rdd2 {[%clk 0:00:43]}  Bxe4 {[%clk 0:00:44]} 31. Ng4 {[%clk 0:00:30]}  Rf5 {[%clk 0:00:44]} 32. Ne3 {[%clk 0:00:28]}  Re5 {[%clk 0:00:34]} 33. Ng4 {[%clk 0:00:27]}  Re6 {[%clk 0:00:34]} 34. fxe4 {[%clk 0:00:20]}  Nxe4+ {[%clk 0:00:35]} 35. Kg1 {[%clk 0:00:21]}  Nxd2 {[%clk 0:00:33]} 36. Rxd2 {[%clk 0:00:22]}  f5 {[%clk 0:00:29]} 37. Nf2 {[%clk 0:00:21]}  Re1 {[%clk 0:00:28]} 38. Nd3 {[%clk 0:00:21]}  Rb1 {[%clk 0:00:29]} 39. Kf2 {[%clk 0:00:20]}  g5 {[%clk 0:00:28]} 40. Be2 {[%clk 0:00:20]}  b5 {[%clk 0:00:22]} 41. cxb5 {[%clk 0:00:17]}  Rxb5 {[%clk 0:00:23]} 42. Nb4 {[%clk 0:00:17]}  Rc5 {[%clk 0:00:20]} 43. Bd3 {[%clk 0:00:17]}  Ra1 {[%clk 0:00:18]} 44. Bc2 {[%clk 0:00:16]}  Ra5 {[%clk 0:00:11]} 45. Nc6 {[%clk 0:00:14]}  Ra6 {[%clk 0:00:11]} 46. Nd4 {[%clk 0:00:14]}  f4 {[%clk 0:00:12]} 47. h4 {[%clk 0:00:11]}  g4 {[%clk 0:00:11]} 48. Ne6+ {[%clk 0:00:11]}  Kf6 {[%clk 0:00:11]} 49. Nxf4 {[%clk 0:00:12]}  Ke5 {[%clk 0:00:11]} 50. Nd3+ {[%clk 0:00:12]}  Kf6 {[%clk 0:00:09]} 51. Nb4 {[%clk 0:00:12]}  Ra5 {[%clk 0:00:09]} 52. Bxh7 {[%clk 0:00:11]}  Ke5 {[%clk 0:00:06]} 53. Nc6+ {[%clk 0:00:09]}  Kf4 {[%clk 0:00:06]} 54. Nxa5 {[%clk 0:00:10]}  g3+ {[%clk 0:00:06]} 55. Ke2 {[%clk 0:00:11]}  Rg1 {[%clk 0:00:07]} 56. Rd4+ {[%clk 0:00:10]}  Ke5 {[%clk 0:00:07]} 57. Re4+ {[%clk 0:00:10]}  Kd5 {[%clk 0:00:07]} 58. Kf3 {[%clk 0:00:11]}  Rb1 {[%clk 0:00:05]} 59. Re5+ {[%clk 0:00:10]}  Kxe5 {[%clk 0:00:04]} 60. Bxb1 {[%clk 0:00:11]} 1-0


[Site "https://www.chess.com"]

[Event "Titled Tuesday Blitz July 27 2021"]
[White "Leenhouts, Koen"]
[Black "Xie, Bryan"]
[WhiteFideId "1008439"]
[BlackFideId "30941296"]
[WhiteElo "2409"]
[BlackElo "1899"]
[Result "1-0"]
[Round "10"]
[TimeControl "180+1"]
[Date "2021.07.27"]
[WhiteClock "0:00:53"]
[BlackClock "0:00:59"]

1. d4 {[%clk 0:02:45]}  Nf6 {[%clk 0:02:59]} 2. c4 {[%clk 0:02:44]}  e6 {[%clk 0:02:58]} 3. Nc3 {[%clk 0:02:41]}  Bb4 {[%clk 0:02:58]} 4. e3 {[%clk 0:02:41]}  O-O {[%clk 0:02:57]} 5. Bd3 {[%clk 0:02:41]}  c5 {[%clk 0:02:56]} 6. Nf3 {[%clk 0:02:39]}  cxd4 {[%clk 0:02:56]} 7. exd4 {[%clk 0:02:39]}  d5 {[%clk 0:02:56]} 8. O-O {[%clk 0:02:40]}  Nc6 {[%clk 0:02:55]} 9. Bg5 {[%clk 0:02:34]}  Be7 {[%clk 0:02:54]} 10. Re1 {[%clk 0:02:30]}  a6 {[%clk 0:02:42]} 11. Rc1 {[%clk 0:02:14]}  dxc4 {[%clk 0:02:40]} 12. Bxc4 {[%clk 0:02:15]}  b5 {[%clk 0:02:40]} 13. Bb3 {[%clk 0:02:10]}  Na5 {[%clk 0:02:36]} 14. Bc2 {[%clk 0:02:06]}  Bb7 {[%clk 0:02:35]} 15. Qd3 {[%clk 0:02:01]}  g6 {[%clk 0:02:23]} 16. Ne5 {[%clk 0:01:59]}  Nd5 {[%clk 0:02:14]} 17. Bh6 {[%clk 0:01:45]}  Re8 {[%clk 0:02:09]} 18. Qh3 {[%clk 0:01:39]}  Bf6 {[%clk 0:01:59]} 19. Ne4 {[%clk 0:01:34]}  Bg7 {[%clk 0:01:56]} 20. Nc5 {[%clk 0:01:22]}  Nb4 {[%clk 0:01:32]} 21. Bxg7 {[%clk 0:01:11]}  Kxg7 {[%clk 0:01:23]} 22. Nxf7 {[%clk 0:01:11]}  Kxf7 {[%clk 0:01:00]} 23. Qxh7+ {[%clk 0:01:09]}  Kf6 {[%clk 0:01:00]} 24. Qxg6+ {[%clk 0:01:01]}  Ke7 {[%clk 0:00:59]} 25. Rxe6+ {[%clk 0:01:01]}  Kf8 {[%clk 0:00:59]} 26. Qf5+ {[%clk 0:00:53]}  Kg7 {[%clk 0:00:58]} 27. Rg6+ {[%clk 0:00:53]}  Kh7 {[%clk 0:00:59]} 1-0


[Site "https://www.chess.com"]

[Event "Titled Tuesday Blitz July 27 2021"]
[White "Ljukin, Sergei"]
[Black "Zong, Davis"]
[WhiteFideId "14102200"]
[BlackFideId "30903955"]
[WhiteElo "2309"]
[BlackElo "2344"]
[Result "1-0"]
[Round "10"]
[TimeControl "180+1"]
[Date "2021.07.27"]
[WhiteClock "0:00:05"]
[BlackClock "0:00:02"]

1. e4 {[%clk 0:03:00]}  e5 {[%clk 0:03:00]} 2. Nf3 {[%clk 0:02:54]}  Nc6 {[%clk 0:03:00]} 3. Bb5 {[%clk 0:02:53]}  a6 {[%clk 0:03:00]} 4. Ba4 {[%clk 0:02:53]}  Nf6 {[%clk 0:03:00]} 5. Qe2 {[%clk 0:02:52]}  b5 {[%clk 0:02:59]} 6. Bb3 {[%clk 0:02:52]}  Bc5 {[%clk 0:02:58]} 7. c3 {[%clk 0:02:52]}  O-O {[%clk 0:02:58]} 8. d3 {[%clk 0:02:52]}  d5 {[%clk 0:02:57]} 9. Bg5 {[%clk 0:02:51]}  dxe4 {[%clk 0:02:54]} 10. dxe4 {[%clk 0:02:51]}  h6 {[%clk 0:02:52]} 11. Bh4 {[%clk 0:02:50]}  Be6 {[%clk 0:02:49]} 12. Bxe6 {[%clk 0:02:39]}  fxe6 {[%clk 0:02:50]} 13. Nbd2 {[%clk 0:02:38]}  Qe8 {[%clk 0:02:50]} 14. O-O {[%clk 0:02:33]}  Nh5 {[%clk 0:02:47]} 15. Bg3 {[%clk 0:02:23]}  Nf4 {[%clk 0:02:44]} 16. Bxf4 {[%clk 0:02:23]}  Rxf4 {[%clk 0:02:43]} 17. b4 {[%clk 0:02:18]}  Bb6 {[%clk 0:02:43]} 18. a4 {[%clk 0:02:17]}  bxa4 {[%clk 0:02:16]} 19. Qc4 {[%clk 0:01:57]}  Kh8 {[%clk 0:02:00]} 20. Rxa4 {[%clk 0:01:49]}  Nd4 {[%clk 0:01:52]} 21. Rxa6 {[%clk 0:01:45]}  Rxa6 {[%clk 0:01:42]} 22. Qxa6 {[%clk 0:01:39]}  Nxf3+ {[%clk 0:01:41]} 23. Nxf3 {[%clk 0:01:38]}  Rxe4 {[%clk 0:01:31]} 24. Re1 {[%clk 0:00:56]}  Qc6 {[%clk 0:01:18]} 25. Qd3 {[%clk 0:00:39]}  Rxe1+ {[%clk 0:01:05]} 26. Nxe1 {[%clk 0:00:38]}  Qd5 {[%clk 0:01:05]} 27. Kf1 {[%clk 0:00:27]}  Kg8 {[%clk 0:01:02]} 28. c4 {[%clk 0:00:24]}  Qxd3+ {[%clk 0:00:48]} 29. Nxd3 {[%clk 0:00:24]}  Bd4 {[%clk 0:00:43]} 30. f3 {[%clk 0:00:22]}  Kf7 {[%clk 0:00:40]} 31. Nf2 {[%clk 0:00:22]}  Ke7 {[%clk 0:00:25]} 32. Ne4 {[%clk 0:00:20]}  c6 {[%clk 0:00:23]} 33. Ke2 {[%clk 0:00:19]}  Kd7 {[%clk 0:00:18]} 34. Kd3 {[%clk 0:00:19]}  Ke7 {[%clk 0:00:16]} 35. Kc2 {[%clk 0:00:19]}  h5 {[%clk 0:00:13]} 36. h3 {[%clk 0:00:18]}  g6 {[%clk 0:00:13]} 37. Kb3 {[%clk 0:00:17]}  Kd7 {[%clk 0:00:13]} 38. Ka4 {[%clk 0:00:17]}  Kc7 {[%clk 0:00:14]} 39. b5 {[%clk 0:00:15]}  Kb6 {[%clk 0:00:12]} 40. bxc6 {[%clk 0:00:15]}  Kxc6 {[%clk 0:00:12]} 41. Ka5 {[%clk 0:00:15]}  Bc5 {[%clk 0:00:10]} 42. Ka4 {[%clk 0:00:14]}  Bd4 {[%clk 0:00:10]} 43. Kb3 {[%clk 0:00:14]}  Be3 {[%clk 0:00:09]} 44. Kc2 {[%clk 0:00:14]}  Kb6 {[%clk 0:00:07]} 45. Kd3 {[%clk 0:00:13]}  Bh6 {[%clk 0:00:05]} 46. c5+ {[%clk 0:00:12]}  Kc6 {[%clk 0:00:05]} 47. Kc4 {[%clk 0:00:12]}  Be3 {[%clk 0:00:06]} 48. Kd3 {[%clk 0:00:11]}  Bxc5 {[%clk 0:00:05]} 49. Ng5 {[%clk 0:00:11]}  Kd5 {[%clk 0:00:04]} 50. Ne4 {[%clk 0:00:10]}  Be7 {[%clk 0:00:04]} 51. Nc3+ {[%clk 0:00:10]}  Kd6 {[%clk 0:00:04]} 52. Ke4 {[%clk 0:00:10]}  Bf6 {[%clk 0:00:03]} 53. Nd1 {[%clk 0:00:10]}  Bg7 {[%clk 0:00:03]} 54. Ne3 {[%clk 0:00:10]}  Kc5 {[%clk 0:00:02]} 55. Nf1 {[%clk 0:00:09]}  Kd6 {[%clk 0:00:02]} 56. Nd2 {[%clk 0:00:09]}  Kc5 {[%clk 0:00:02]} 57. Nb3+ {[%clk 0:00:09]}  Kc4 {[%clk 0:00:02]} 58. Na5+ {[%clk 0:00:09]}  Kb5 {[%clk 0:00:02]} 59. Nb3 {[%clk 0:00:08]}  Kc4 {[%clk 0:00:02]} 60. Nc1 {[%clk 0:00:08]}  Kc5 {[%clk 0:00:03]} 61. Nd3+ {[%clk 0:00:08]}  Kd6 {[%clk 0:00:03]} 62. Nb2 {[%clk 0:00:08]}  Kc5 {[%clk 0:00:03]} 63. Kd3 {[%clk 0:00:08]}  Kd5 {[%clk 0:00:03]} 64. Nc4 {[%clk 0:00:08]}  e4+ {[%clk 0:00:03]} 65. fxe4+ {[%clk 0:00:07]}  Kc5 {[%clk 0:00:03]} 66. Ne3 {[%clk 0:00:07]}  Bf6 {[%clk 0:00:03]} 67. g4 {[%clk 0:00:07]}  hxg4 {[%clk 0:00:03]} 68. hxg4 {[%clk 0:00:08]}  Bg7 {[%clk 0:00:03]} 69. Ng2 {[%clk 0:00:07]}  Bf6 {[%clk 0:00:03]} 70. Nf4 {[%clk 0:00:08]}  g5 {[%clk 0:00:03]} 71. Nxe6+ {[%clk 0:00:08]}  Kd6 {[%clk 0:00:03]} 72. Nf8 {[%clk 0:00:06]}  Ke5 {[%clk 0:00:02]} 73. Nd7+ {[%clk 0:00:05]} 1-0


[Site "https://www.chess.com"]

[Event "Titled Tuesday Blitz July 27 2021"]
[White "Lodici, Lorenzo"]
[Black "Swicarz, Maciej"]
[WhiteFideId "884189"]
[BlackFideId "1113585"]
[WhiteElo "2265"]
[BlackElo "2199"]
[Result "1-0"]
[Round "10"]
[TimeControl "180+1"]
[Date "2021.07.27"]
[WhiteClock "0:01:34"]
[BlackClock "0:00:42"]

1. g3 {[%clk 0:03:00]}  d5 {[%clk 0:02:59]} 2. Bg2 {[%clk 0:02:57]}  Nf6 {[%clk 0:02:59]} 3. f4 {[%clk 0:02:57]}  Nbd7 {[%clk 0:02:58]} 4. Nf3 {[%clk 0:02:57]}  Nb6 {[%clk 0:02:58]} 5. d3 {[%clk 0:02:55]}  h5 {[%clk 0:02:51]} 6. O-O {[%clk 0:02:55]}  Bf5 {[%clk 0:02:49]} 7. Qe1 {[%clk 0:02:53]}  Qc8 {[%clk 0:02:45]} 8. Nc3 {[%clk 0:02:50]}  c6 {[%clk 0:02:44]} 9. e4 {[%clk 0:02:50]}  Bh3 {[%clk 0:02:39]} 10. e5 {[%clk 0:02:50]}  Bxg2 {[%clk 0:02:37]} 11. Kxg2 {[%clk 0:02:51]}  Ng4 {[%clk 0:02:35]} 12. Nd1 {[%clk 0:02:38]}  e6 {[%clk 0:02:35]} 13. Ne3 {[%clk 0:02:38]}  Nxe3+ {[%clk 0:02:34]} 14. Bxe3 {[%clk 0:02:39]}  c5 {[%clk 0:02:34]} 15. a4 {[%clk 0:02:32]}  a5 {[%clk 0:02:33]} 16. Bd2 {[%clk 0:02:31]}  Qc6 {[%clk 0:02:26]} 17. b3 {[%clk 0:02:30]}  d4 {[%clk 0:02:20]} 18. Bxa5 {[%clk 0:02:29]}  h4 {[%clk 0:02:17]} 19. Bd2 {[%clk 0:02:29]}  hxg3 {[%clk 0:02:16]} 20. hxg3 {[%clk 0:02:29]}  Nd5 {[%clk 0:02:17]} 21. Rh1 {[%clk 0:02:29]}  Rxh1 {[%clk 0:02:16]} 22. Qxh1 {[%clk 0:02:30]}  g6 {[%clk 0:02:11]} 23. Kf2 {[%clk 0:02:30]}  Nb4 {[%clk 0:01:59]} 24. Qd1 {[%clk 0:02:27]}  Rd8 {[%clk 0:01:55]} 25. Ng5 {[%clk 0:02:26]}  Be7 {[%clk 0:01:53]} 26. Ne4 {[%clk 0:02:26]}  Kf8 {[%clk 0:01:49]} 27. Qh1 {[%clk 0:02:17]}  Kg7 {[%clk 0:01:48]} 28. f5 {[%clk 0:02:16]}  Rh8 {[%clk 0:01:44]} 29. f6+ {[%clk 0:02:17]}  Kg8 {[%clk 0:01:44]} 30. Qxh8+ {[%clk 0:02:12]}  Kxh8 {[%clk 0:01:43]} 31. Rh1+ {[%clk 0:02:11]}  Kg8 {[%clk 0:01:43]} 32. Bh6 {[%clk 0:01:49]}  Bxf6 {[%clk 0:00:42]} 33. Nxf6+ {[%clk 0:01:35]}  Kh8 {[%clk 0:00:42]} 34. Rh2 {[%clk 0:01:34]} 1-0


[Site "https://www.chess.com"]

[Event "Titled Tuesday Blitz July 27 2021"]
[White "Maly, Alexey"]
[Black "Arnold, Ken"]
[WhiteFideId "14103184"]
[BlackFideId "2056836"]
[WhiteElo "2285"]
[BlackElo "2502"]
[Result "1-0"]
[Round "10"]
[TimeControl "180+1"]
[Date "2021.07.27"]
[WhiteClock "0:02:00"]
[BlackClock "0:00:25"]

1. d4 {[%clk 0:03:00]}  Nf6 {[%clk 0:02:59]} 2. c4 {[%clk 0:03:01]}  g6 {[%clk 0:02:59]} 3. Nc3 {[%clk 0:03:01]}  d5 {[%clk 0:02:59]} 4. cxd5 {[%clk 0:03:01]}  Nxd5 {[%clk 0:02:59]} 5. e4 {[%clk 0:03:02]}  Nxc3 {[%clk 0:03:00]} 6. bxc3 {[%clk 0:03:02]}  Bg7 {[%clk 0:03:00]} 7. Nf3 {[%clk 0:03:03]}  O-O {[%clk 0:03:00]} 8. Be3 {[%clk 0:03:04]}  c5 {[%clk 0:03:00]} 9. Qd2 {[%clk 0:03:04]}  Bg4 {[%clk 0:02:59]} 10. Rc1 {[%clk 0:03:04]}  cxd4 {[%clk 0:02:58]} 11. cxd4 {[%clk 0:03:04]}  Bxf3 {[%clk 0:02:57]} 12. gxf3 {[%clk 0:03:05]}  Nc6 {[%clk 0:02:57]} 13. d5 {[%clk 0:03:06]}  Ne5 {[%clk 0:02:54]} 14. Be2 {[%clk 0:03:06]}  Qd7 {[%clk 0:02:41]} 15. f4 {[%clk 0:03:07]}  Ng4 {[%clk 0:02:39]} 16. O-O {[%clk 0:03:07]}  Nxe3 {[%clk 0:02:39]} 17. Qxe3 {[%clk 0:03:08]}  Rfc8 {[%clk 0:02:13]} 18. Kg2 {[%clk 0:03:00]}  b6 {[%clk 0:02:05]} 19. Ba6 {[%clk 0:02:52]}  Qg4+ {[%clk 0:02:01]} 20. Qg3 {[%clk 0:02:52]}  Qxg3+ {[%clk 0:01:57]} 21. hxg3 {[%clk 0:02:52]}  Rc5 {[%clk 0:01:55]} 22. Rxc5 {[%clk 0:02:47]}  bxc5 {[%clk 0:01:54]} 23. Rb1 {[%clk 0:02:42]}  Bd4 {[%clk 0:01:53]} 24. Rb7 {[%clk 0:02:37]}  Kf8 {[%clk 0:01:51]} 25. Kf1 {[%clk 0:02:36]}  h5 {[%clk 0:01:50]} 26. Ke2 {[%clk 0:02:36]}  c4 {[%clk 0:01:22]} 27. Bxc4 {[%clk 0:02:34]}  Rc8 {[%clk 0:01:21]} 28. Bb3 {[%clk 0:02:31]}  Bb6 {[%clk 0:01:15]} 29. e5 {[%clk 0:02:29]}  Rc3 {[%clk 0:00:43]} 30. d6 {[%clk 0:02:26]}  exd6 {[%clk 0:00:42]} 31. exd6 {[%clk 0:02:18]}  Rc6 {[%clk 0:00:40]} 32. Rxf7+ {[%clk 0:02:17]}  Ke8 {[%clk 0:00:39]} 33. Rf6 {[%clk 0:02:05]}  Kd8 {[%clk 0:00:27]} 34. Ba4 {[%clk 0:02:00]}  Rc4 {[%clk 0:00:25]} 35. Rf8# {[%clk 0:02:00]} 1-0


[Site "https://www.chess.com"]

[Event "Titled Tuesday Blitz July 27 2021"]
[White "Melikhov, Evgeny V."]
[Black "Pires, Marcos Vinicius Torsani"]
[WhiteFideId "4122046"]
[BlackFideId "2118939"]
[WhiteElo "1965"]
[BlackElo "2273"]
[Result "1/2-1/2"]
[Round "10"]
[TimeControl "180+1"]
[Date "2021.07.27"]
[WhiteClock "0:00:28"]
[BlackClock "0:00:06"]

1. d4 {[%clk 0:02:52]}  c6 {[%clk 0:03:00]} 2. c4 {[%clk 0:02:49]}  d5 {[%clk 0:03:01]} 3. Nc3 {[%clk 0:02:48]}  Nf6 {[%clk 0:03:01]} 4. e3 {[%clk 0:02:48]}  e6 {[%clk 0:03:01]} 5. Nf3 {[%clk 0:02:48]}  Nbd7 {[%clk 0:03:01]} 6. Bd3 {[%clk 0:02:48]}  Be7 {[%clk 0:03:00]} 7. O-O {[%clk 0:02:47]}  O-O {[%clk 0:03:00]} 8. e4 {[%clk 0:02:48]}  dxe4 {[%clk 0:03:00]} 9. Nxe4 {[%clk 0:02:48]}  b6 {[%clk 0:03:00]} 10. Qe2 {[%clk 0:02:40]}  Bb7 {[%clk 0:02:58]} 11. c5 {[%clk 0:02:38]}  bxc5 {[%clk 0:02:46]} 12. dxc5 {[%clk 0:02:38]}  Nxc5 {[%clk 0:02:26]} 13. Nxc5 {[%clk 0:02:37]}  Bxc5 {[%clk 0:02:22]} 14. Rd1 {[%clk 0:02:37]}  Qc7 {[%clk 0:02:13]} 15. Bg5 {[%clk 0:02:35]}  Be7 {[%clk 0:02:12]} 16. Ne5 {[%clk 0:02:15]}  c5 {[%clk 0:02:02]} 17. Bxf6 {[%clk 0:02:13]}  Bxf6 {[%clk 0:01:58]} 18. Nd7 {[%clk 0:02:13]}  Rfd8 {[%clk 0:01:36]} 19. Nxf6+ {[%clk 0:02:13]}  gxf6 {[%clk 0:01:37]} 20. Rac1 {[%clk 0:02:09]}  Rd5 {[%clk 0:01:08]} 21. Be4 {[%clk 0:01:41]}  Rxd1+ {[%clk 0:01:07]} 22. Rxd1 {[%clk 0:01:41]}  Bxe4 {[%clk 0:01:04]} 23. Qxe4 {[%clk 0:01:40]}  Rd8 {[%clk 0:01:00]} 24. Rxd8+ {[%clk 0:01:35]}  Qxd8 {[%clk 0:01:01]} 25. h4 {[%clk 0:01:35]}  Qd1+ {[%clk 0:00:57]} 26. Kh2 {[%clk 0:01:35]}  Qd5 {[%clk 0:00:58]} 27. Qa4 {[%clk 0:01:27]}  Qe5+ {[%clk 0:00:46]} 28. f4 {[%clk 0:01:22]}  Qc7 {[%clk 0:00:45]} 29. g3 {[%clk 0:01:15]}  Qb6 {[%clk 0:00:43]} 30. b3 {[%clk 0:01:12]}  Qc7 {[%clk 0:00:43]} 31. h5 {[%clk 0:01:09]}  Kg7 {[%clk 0:00:43]} 32. Qe4 {[%clk 0:01:05]}  Qd6 {[%clk 0:00:33]} 33. Qc2 {[%clk 0:01:01]}  Qd4 {[%clk 0:00:32]} 34. Qe2 {[%clk 0:00:54]}  a5 {[%clk 0:00:26]} 35. Qg4+ {[%clk 0:00:53]}  Kf8 {[%clk 0:00:24]} 36. h6 {[%clk 0:00:52]}  Qd2+ {[%clk 0:00:19]} 37. Kh3 {[%clk 0:00:52]}  Qd3 {[%clk 0:00:17]} 38. Qg7+ {[%clk 0:00:47]}  Ke7 {[%clk 0:00:17]} 39. Qg8 {[%clk 0:00:43]}  Qg6 {[%clk 0:00:17]} 40. Qg7 {[%clk 0:00:40]}  Qh5+ {[%clk 0:00:14]} 41. Kg2 {[%clk 0:00:40]}  Qe2+ {[%clk 0:00:14]} 42. Kh3 {[%clk 0:00:40]}  Qe4 {[%clk 0:00:14]} 43. Kh2 {[%clk 0:00:35]}  a4 {[%clk 0:00:13]} 44. bxa4 {[%clk 0:00:35]}  Qxa4 {[%clk 0:00:09]} 45. Qxh7 {[%clk 0:00:34]}  Qxa2+ {[%clk 0:00:09]} 46. Kh3 {[%clk 0:00:30]}  Qe2 {[%clk 0:00:09]} 47. Qg7 {[%clk 0:00:29]}  Qh5+ {[%clk 0:00:09]} 48. Kg2 {[%clk 0:00:29]}  Qe2+ {[%clk 0:00:10]} 49. Kh3 {[%clk 0:00:29]}  Qh5+ {[%clk 0:00:10]} 50. Kg2 {[%clk 0:00:29]}  Qe2+ {[%clk 0:00:06]} 51. Kh3 {[%clk 0:00:28]} 1/2-1/2


[Site "https://www.chess.com"]